bitfinex/quotes_ETHUSD_20241124
["timestamp","ask_amount","ask_price","bid_price","bid_amount"]
[1732466978283,3.76049,3325.3,3324.3,0.180488]
[1732466978612,0.7532,3325.3,3324.8,1.8046]
[1732466978820,0.7532,3325.3,3325.0,1.8045]
[1732466979020,3.00682,3325.8,3324.8,1.8046]
[1732466979021,0.7532,3325.8,3325.2,1.8044]
[1732466979331,0.7532,3325.8,3325.5,1.80422]
[1732466979492,0.7532,3325.8,3325.7,1.80413]
[1732466979687,0.7532,3325.8,3325.3,1.80432]
[1732466979912,1.129195,3325.8,3325.3,1.80432]
[1732466980435,1.129195,3325.8,3324.8,3.05924278]
[1732466980436,3.00702,3325.6,3325.0,1.80447]
[1732466980633,0.7532,3325.5,3324.7,1.80465]
[1732466980806,3.00726,3325.3,3324.7,1.80465]
[1732466981435,3.00721,3325.4,3324.8,1.80461]
[1732466981589,3.683951,3325.4,3324.8,1.80461]
[1732466982025,0.676741,3325.4,3324.9,1.80456]
[1732466982189,3.76026,3325.5,3325.0,1.80447]
[1732466982390,0.7532,3325.5,3324.5,0.8097]
[1732466982586,0.376018,3325.4,3325.0,1.8045]
[1732466982992,0.376018,3325.4,3324.9,1.80455]
[1732466983192,0.376018,3325.4,3324.7,1.80462]
[1732466983193,0.7532,3325.5,3324.7,1.80462]
[1732466983420,0.7664,3325.3,3324.6,1.8047]
[1732466983617,0.7664,3325.3,3324.7,1.80464]
[1732466983872,3.00724,3325.3,3324.5,1.80475]
[1732466984130,0.7664,3325.0,3324.3,1.80486]
[1732466984441,3.00752,3325.0,3324.3,1.80486]
[1732466984727,0.7664,3324.9,3324.3,1.80486]
[1732466984902,0.7664,3324.4,3322.9,0.59402491]
[1732466985115,0.7664,3324.4,3323.3,0.7621]
[1732466985430,0.7664,3324.4,3322.8,4.05520278]
[1732466985431,0.7664,3324.1,3323.1,1.80553]
[1732466985604,0.8142,3323.9,3323.1,1.8055]
[1732466985790,3.00849,3324.0,3323.1,1.8055]
[1732466985791,1.196469,3323.8,3323.1,1.8055]
[1732466985991,1.196469,3323.8,3323.3,1.80541]
[1732466986248,0.8142,3323.8,3323.3,1.80538]
[1732466986535,0.8142,3323.8,3323.0,1.80559]
[1732466986736,0.8142,3323.8,3323.1,0.180559]
[1732466986891,0.8142,3323.8,3323.6,1.80523]
[1732466987094,0.8142,3323.8,3323.7,1.80521]
[1732466987349,0.8142,3324.6,3324.0,1.80502]
[1732466987693,0.8142,3324.6,3324.3,1.80487]
[1732466988029,0.8142,3324.6,3324.3,1.80485]
[1732466988335,0.8142,3324.6,3324.3,1.80488]
[1732466988573,0.8142,3324.6,3324.5,1.80478]
[1732466988889,0.8142,3324.6,3324.3,1.80488]
[1732466989095,0.8142,3324.6,3324.4,1.80482]
[1732466989638,0.8142,3324.6,3324.2,1.80492]
[1732466989815,0.8142,3324.6,3324.4,1.80482]
[1732466990911,0.8142,3324.6,3324.2,1.80492]
[1732466991111,0.8142,3324.6,3324.3,1.80488]
[1732466991112,0.382201,3324.5,3324.3,1.80488]
[1732466991315,0.8142,3324.6,3324.3,1.80488]
[1732466991513,0.8142,3324.6,3324.4,1.80482]
[1732466991848,0.8142,3324.6,3324.3,1.80485]
[1732466992373,0.8142,3324.6,3324.5,1.80478]
[1732466992646,0.8142,3324.9,3324.7,1.80463]
[1732466992939,0.8142,3324.9,3324.8,1.80461]
[1732466993246,3.00686,3325.8,3324.7,1.80463]
[1732466993453,0.8142,3325.7,3325.2,1.80435]
[1732466993744,3.82115,3325.7,3324.5,0.7879]
[1732466993943,3.00707,3325.5,3324.9,1.80454]
[1732466994101,0.8142,3325.4,3324.9,1.80454]
[1732466994301,0.8142,3325.4,3324.9,1.80451]
[1732466994502,0.8142,3325.4,3325.0,1.80449]
[1732466995010,4.203537,3325.4,3324.8,1.8046]
[1732466995198,1.196317,3325.4,3325.0,1.8045]
[1732466995404,0.8142,3325.4,3324.8,1.8046]
[1732466995620,3.00739,3325.2,3324.5,1.80474]
[1732466995805,0.8142,3325.1,3324.5,1.80475]
[1732466996007,3.82169,3325.1,3324.5,1.80475]
[1732466996205,3.82169,3325.1,3324.3,4.80485]
[1732466996206,0.8142,3325.1,3324.4,1.80483]
[1732466996406,0.8142,3324.8,3324.2,1.8049]
[1732466996870,0.8142,3324.6,3323.4,3.03744278]
[1732466997145,3.8221,3324.6,3324.0,1.80501]
[1732466997329,3.00799,3324.5,3324.0,1.80501]
[1732466997520,3.991778,3324.5,3324.0,1.80501]
[1732466997719,3.00826,3324.2,3323.6,1.80522]
[1732466997906,0.8142,3324.1,3323.6,1.80522]
[1732466998108,0.8142,3324.1,3323.7,1.80518]
[1732466998311,0.8142,3324.1,3323.4,1.80535]
[1732466998636,3.82253,3324.1,3323.5,1.80528]
[1732466998941,3.82253,3324.1,3323.4,1.80535]
[1732466998942,3.82253,3324.1,3323.6,1.80525]
[1732466999355,3.82253,3324.1,3323.5,4.80532]
[1732466999658,4.505598,3324.1,3323.4,1.80533]
[1732466999949,4.505598,3324.1,3323.5,1.80529]
[1732467000363,4.505598,3324.1,3323.4,1.80533]
[1732467000652,1.497268,3324.1,3323.6,1.80526]
[1732467000856,4.505598,3324.1,3323.4,1.80533]
[1732467001054,3.82268,3324.0,3323.3,1.8054]
[1732467001231,3.00851,3323.9,3323.3,1.8054]
[1732467001631,3.00853,3323.9,3323.1,1.80549]
[1732467001832,3.00853,3323.9,3322.7,0.7879]
[1732467001833,3.00877,3323.7,3322.9,1.80563]
[1732467002153,3.309597,3323.7,3323.1,1.80549]
[1732467002322,3.309597,3323.7,3322.7,1.989481]
[1732467002323,3.00882,3323.6,3323.0,4.80558]
[1732467002655,0.8142,3323.5,3323.1,1.80553]
[1732467002829,0.8142,3323.5,3322.9,1.80561]
[1732467003215,0.8142,3323.5,3322.7,4.80573]
[1732467003420,3.00902,3323.4,3322.8,4.8057]
[1732467003632,3.00902,3323.4,3322.7,1.80573]
[1732467004158,3.00921,3323.2,3322.6,1.8058]
[1732467004357,0.7802,3323.1,3322.5,4.201676]
[1732467004658,0.7802,3323.1,3322.4,1.80588]
[1732467004659,3.00936,3323.0,3322.4,1.80588]
[1732467004854,3.00967,3322.7,3322.0,1.80612]
[1732467005017,0.7802,3322.6,3322.1,1.80607]
[1732467005415,0.7802,3322.6,3321.7,3.01564278]
[1732467005416,0.7802,3322.6,3321.7,4.21760178]
[1732467005729,3.00999,3322.3,3321.7,1.80627]
[1732467006057,0.7802,3322.6,3322.1,1.80608]
[1732467006219,3.00974,3322.6,3321.5,1.80641]
[1732467006556,3.00998,3322.3,3321.6,1.80632]
[1732467006745,0.300998,3322.2,3321.7,1.80628]
[1732467006947,3.00989,3322.4,3321.7,1.80628]
[1732467007129,3.79,3322.5,3321.7,1.80628]
[1732467007334,0.379,3322.4,3321.7,1.80628]
[1732467007527,3.01008,3322.2,3321.5,1.80637]
[1732467008257,1.39719057,3322.3,3321.7,1.80624]
[1732467008431,3.01006,3322.2,3321.7,1.80624]
[1732467008636,1.39719057,3322.3,3321.7,1.80624]
[1732467008959,3.01005,3322.2,3321.5,1.8064]
[1732467009263,4.23113406,3322.1,3321.5,1.8064]
[1732467009434,3.01023,3322.0,3321.5,1.8064]
[1732467009754,1.22092406,3322.1,3321.5,1.8064]
[1732467009956,1.22092406,3322.1,3321.6,1.80635]
[1732467010142,0.7802,3322.1,3321.8,1.80623]
[1732467010757,0.7802,3322.1,3321.6,1.80635]
[1732467011263,3.79042,3322.1,3321.4,1.80646]
[1732467011572,3.01048,3321.8,3321.2,1.80655]
[1732467011724,0.7802,3321.7,3321.2,1.80655]
[1732467011927,3.7907,3321.7,3321.1,1.80662]
[1732467012124,4.169756,3321.7,3321.1,1.80662]
[1732467012464,0.7802,3321.6,3321.0,1.80664]
[1732467012628,0.7802,3321.6,3321.2,1.80656]
[1732467012965,1.36429887,3322.0,3321.3,1.80652]
[1732467013271,0.7802,3322.2,3321.9,1.80619]
[1732467013423,0.7802,3322.2,3321.9,1.80615]
[1732467013620,0.7802,3322.6,3322.2,1.80599]
[1732467014125,0.7802,3323.3,3322.7,1.80572]
[1732467014329,0.7802,3323.3,3322.9,1.80564]
[1732467014531,0.7802,3323.3,3322.8,1.8057]
[1732467014841,3.78926,3323.3,3322.8,1.8057]
[1732467015048,0.679829,3323.2,3322.2,0.7661]
[1732467015371,3.689029,3323.2,3322.6,1.8058]
[1732467015571,0.4469229,3323.1,3322.4,1.80589]
[1732467015948,0.4469229,3323.1,3322.6,1.8058]
[1732467016261,0.7802,3323.3,3323.1,3.61102]
[1732467016461,0.7802,3323.3,3323.1,1.80551]
[1732467016674,0.7802,3323.3,3323.2,1.80548]
[1732467016870,0.7802,3323.8,3323.4,1.80537]
[1732467017540,0.7802,3323.8,3323.5,1.80531]
[1732467017948,0.7802,3323.8,3323.4,1.80537]
[1732467018162,0.7802,3323.8,3323.6,1.80523]
[1732467018367,0.7802,3323.8,3323.7,1.80521]
[1732467018553,6.00807,3324.4,3323.7,1.80521]
[1732467018770,4.52313152,3324.3,3323.8,1.80515]
[1732467018946,1.51491152,3324.3,3323.8,1.80515]
[1732467019151,4.52309152,3324.3,3323.7,1.8052]
[1732467019499,4.52309152,3324.3,3323.6,1.80526]
[1732467019500,3.45974115,3324.2,3323.6,1.80526]
[1732467019783,0.79828327,3324.1,3323.7,1.80517]
[1732467019938,4.52306152,3324.3,3323.7,1.80517]
[1732467020141,3.00825,3324.2,3323.7,1.80517]
[1732467020451,4.52306152,3324.3,3323.7,1.80517]
[1732467020837,1.51491152,3324.3,3323.9,1.80507]
[1732467021077,0.7802,3324.3,3323.9,1.80507]
[1732467021676,0.7802,3324.3,3323.7,1.80521]
[1732467021887,0.7802,3324.3,3323.0,0.7661]
[1732467022052,3.0083,3324.2,3323.6,1.80526]
[1732467022250,3.00841,3324.1,3323.4,1.80536]
[1732467022564,3.0086,3323.8,3323.0,1.80555]
[1732467022878,3.00871,3323.7,3323.1,1.8055]
[1732467023049,3.688461,3323.7,3323.1,1.8055]
[1732467023241,0.679751,3323.7,3323.1,1.8055]
[1732467023441,0.679751,3323.7,3323.0,1.80559]
[1732467023642,3.00882,3323.6,3322.7,0.7661]
[1732467023871,3.00904,3323.4,3322.6,1.80577]
[1732467024270,3.00906,3323.3,3322.7,1.80573]
[1732467024503,0.8185,3323.2,3322.1,1.80608]
[1732467024644,3.00958,3322.8,3322.1,1.80604]
[1732467024838,0.8185,3322.6,3322.1,1.80607]
[1732467025077,2.16109985,3322.6,3322.1,1.80607]
[1732467025655,0.8185,3322.6,3321.9,1.80616]
[1732467025856,0.8185,3322.6,3322.1,1.80608]
[1732467026038,0.8185,3322.6,3321.9,1.80617]
[1732467026249,0.8185,3322.6,3322.1,1.80604]
[1732467027079,3.82825,3322.6,3321.9,1.80617]
[1732467027388,2.50981,3322.5,3321.9,1.80617]
[1732467027546,2.50981,3322.5,3321.7,4.80629]
[1732467027886,0.8185,3322.0,3321.3,3.0]
[1732467028053,3.01042,3321.8,3320.7,0.7716]
[1732467028379,3.0106,3321.6,3320.7,0.7716]
[1732467028553,3.01069,3321.5,3320.9,1.80673]
[1732467029080,3.01121,3321.0,3320.4,1.80697]
[1732467029317,3.01115,3321.0,3320.4,1.80697]
[1732467029457,0.8185,3321.3,3320.2,1.8071]
[1732467029458,3.01128,3320.9,3320.2,1.8071]
[1732467029780,3.8294,3321.3,3320.4,1.80695]
[1732467030007,3.01114,3321.0,3320.4,1.80695]
[1732467030283,3.82939,3321.3,3320.4,1.80699]
[1732467030484,3.0111,3321.1,3320.3,1.80705]
[1732467030793,4.35309376,3321.0,3320.3,1.80705]
[1732467031087,3.01138,3320.8,3320.0,0.7716]
[1732467031308,3.01138,3320.8,3320.0,2.57878]
[1732467031309,3.01147,3320.7,3320.0,2.57878]
[1732467031466,3.01159,3320.5,3319.9,1.80726]
[1732467031798,0.8185,3320.7,3320.1,1.80717]
[1732467032146,3.82996,3320.7,3320.2,0.05748985]
[1732467032572,3.01152,3320.6,3320.2,0.05748985]
[1732467032893,3.01161,3320.5,3320.2,0.05748985]
[1732467033088,3.01177,3320.3,3320.2,0.05748985]
[1732467033253,0.8185,3320.7,3320.2,0.05748985]
[1732467033254,3.0117,3320.4,3320.2,0.05748985]
[1732467033455,4.13144,3320.3,3320.2,0.05748985]
[1732467033786,3.01202,3320.1,3319.3,1.80757]
[1732467033948,3.01186,3320.2,3319.0,1.80777]
[1732467034149,1.11967,3320.3,3318.9,0.7716]
[1732467034150,3.01196,3320.1,3319.5,1.80749]
[1732467034495,3.01193,3320.2,3319.6,0.05748985]
[1732467034790,4.13144,3320.3,3319.6,0.05748985]
[1732467035089,1.38093908,3320.2,3319.6,0.05748985]
[1732467035302,1.38093908,3320.2,3319.8,1.80728]
[1732467035589,0.8185,3320.3,3319.9,1.80727]
[1732467035886,3.82977,3320.9,3320.2,1.80711]
[1732467036092,2.16584461,3320.9,3320.4,1.80698]
[1732467036252,2.16584461,3320.9,3320.5,0.02222106]
[1732467036448,5.69477407,3320.9,3320.3,1.80703]
[1732467036793,0.8185,3320.9,3320.4,0.05485015]
[1732467037093,3.82938,3321.3,3320.6,1.80686]
[1732467037387,3.82938,3321.3,3320.4,1.86185015]
[1732467037388,3.0111,3321.1,3320.4,1.86185015]
[1732467037597,3.0111,3321.1,3320.5,1.80694]
[1732467037895,0.8185,3321.0,3320.5,1.80691]
[1732467038242,0.8185,3321.0,3320.6,1.80689]
[1732467038442,2.17999219,3321.0,3320.7,1.80682]
[1732467038686,0.8185,3321.5,3321.1,1.80657]
[1732467038846,0.1,3322.9,3320.7,0.180682]
[1732467038847,3.0102,3322.1,3320.8,1.80676]
[1732467039047,0.8185,3321.9,3321.5,1.8064]
[1732467039291,0.1,3323.1,3320.9,1.83682906]
[1732467039292,0.8185,3322.4,3321.8,1.80624]
[1732467039479,3.00997,3322.3,3321.9,0.02178366]
[1732467039678,0.8185,3322.4,3321.1,4.8066]
[1732467039852,0.8185,3322.4,3321.9,1.80617]
[1732467040057,3.82837,3322.4,3321.6,1.80634]
[1732467040395,4.211227,3322.4,3321.4,1.80646]
[1732467040560,1.201337,3322.4,3321.5,1.80641]
[1732467040759,3.00996,3322.3,3321.7,1.80626]
[1732467041097,3.00996,3322.3,3321.5,1.80641]
[1732467041098,3.01007,3322.2,3321.5,1.80641]
[1732467041311,3.00996,3322.3,3321.5,1.80641]
[1732467041594,0.8185,3322.4,3321.9,1.80618]
[1732467041801,3.82839,3322.4,3321.8,1.80624]
[1732467042155,3.01006,3322.2,3321.6,1.80632]
[1732467042363,0.683845,3322.2,3321.2,0.05437285]
[1732467042592,3.01025,3322.0,3321.4,1.80646]
[1732467042753,3.00942,3322.9,3322.3,1.80597]
[1732467042960,3.320218,3323.1,3322.3,1.80597]
[1732467043309,3.0093,3323.1,3322.5,1.80586]
[1732467043613,3.00879,3323.6,3322.8,1.8057]
[1732467043759,0.300865,3323.7,3322.7,1.80575]
[1732467043955,3.00893,3323.5,3322.9,0.02161229]
[1732467044196,0.300893,3323.4,3322.9,1.80564]
[1732467044503,0.300893,3323.4,3323.0,0.02160024]
[1732467044801,3.0088,3323.6,3323.0,0.02160024]
[1732467045003,3.00891,3323.5,3323.0,0.02160024]
[1732467045305,3.00811,3324.4,3323.6,1.80521]
[1732467045465,4.22324887,3324.4,3323.7,1.85782546]
[1732467045667,0.42232489,3324.3,3323.7,0.05262546]
[1732467045902,3.00853,3323.9,3323.7,0.05262546]
[1732467046374,3.0086,3323.8,3323.7,0.05262546]
[1732467046763,3.00865,3323.8,3322.9,1.80565]
[1732467046965,3.00897,3323.4,3322.7,1.80575]
[1732467047165,3.00897,3323.4,3323.0,0.02170068]
[1732467047376,0.42232489,3324.3,3323.8,1.80515]
[1732467047576,0.8263,3325.1,3323.8,1.80515]
[1732467047577,3.00785,3324.7,3324.0,1.80504]
[1732467047776,3.00758,3325.0,3324.1,1.80499]
[1732467048065,0.8263,3325.5,3324.8,1.8046]
[1732467048382,0.8263,3325.5,3325.0,1.8045]
[1732467048566,0.8263,3325.5,3324.9,0.02138844]
[1732467048914,3.83338,3325.5,3325.0,0.02132392]
[1732467049218,3.83338,3325.5,3324.7,1.80467]
[1732467049219,3.00725,3325.3,3324.7,1.80467]
[1732467049369,3.00725,3325.3,3324.5,1.80473]
[1732467049370,3.00724,3325.3,3324.5,1.80473]
[1732467049564,3.00724,3325.3,3324.3,1.80488]
[1732467049565,3.3464778,3325.2,3324.8,0.02136596]
[1732467049769,3.00742,3325.2,3324.4,1.80483]
[1732467049964,3.00742,3325.2,3324.2,0.8063]
[1732467049965,3.34213778,3325.1,3324.2,2.61123]
[1732467050186,3.00786,3324.7,3324.5,0.02137811]
[1732467050393,3.308666,3324.6,3324.5,0.02137811]
[1732467050600,3.308666,3324.6,3323.9,1.8051]
[1732467050813,0.8263,3326.3,3324.1,0.8063]
[1732467051070,3.00725,3325.3,3324.6,1.8047]
[1732467051304,3.83337,3325.5,3324.7,1.80467]
[1732467051614,3.83337,3325.5,3324.8,1.80461]
[1732467051773,3.00716,3325.4,3324.6,1.80469]
[1732467051969,3.390497,3325.4,3324.6,1.80469]
[1732467052190,3.390497,3325.4,3324.0,0.05099892]
[1732467052191,3.0,3325.3,3324.0,0.05099892]
[1732467052536,3.0078,3324.7,3324.0,1.85600892]
[1732467052741,0.8263,3325.2,3324.0,1.85600892]
[1732467052742,0.8263,3325.2,3324.0,0.05099892]
[1732467053033,3.00725,3325.3,3324.5,1.80474]
[1732467053256,0.77,3325.6,3324.5,1.80473]
[1732467053257,3.307787,3325.5,3324.5,1.80473]
[1732467053532,3.00728,3325.3,3324.7,1.80466]
[1732467053734,3.608717,3325.3,3324.7,1.80466]
[1732467054231,3.608717,3325.3,3324.8,0.02136596]
[1732467054527,0.601437,3325.3,3324.8,0.02136596]
[1732467054691,3.00725,3325.3,3324.8,0.02136596]
[1732467055139,3.00725,3325.3,3324.7,1.80467]
[1732467055736,3.00716,3325.4,3324.8,0.04824626]
[1732467055948,3.399761,3326.2,3325.3,1.80434]
[1732467056436,3.399761,3326.2,3325.5,1.80419]
[1732467056741,0.3399761,3326.1,3325.2,0.7858]
[1732467056894,0.393261,3326.2,3325.5,1.80419]
[1732467057238,3.77608,3326.6,3325.8,1.80405]
[1732467057435,3.00623,3326.5,3325.8,1.80405]
[1732467057644,0.678231,3326.4,3325.8,1.80405]
[1732467057798,0.678231,3326.4,3325.9,1.82515938]
[1732467057993,0.77,3326.6,3326.0,1.80395]
[1732467058200,0.77,3326.6,3326.0,1.80392]
[1732467058423,0.77,3326.6,3326.1,0.02108857]
[1732467058774,3.77608,3326.6,3326.1,0.02108857]
[1732467058896,4.454278,3326.6,3326.1,0.02108857]
[1732467059249,4.454278,3326.6,3325.9,3.60802]
[1732467059440,3.684278,3326.6,3326.2,0.04824626]
[1732467059599,3.684278,3326.6,3325.8,1.80407]
[1732467059600,3.00624,3326.5,3325.8,1.80407]
[1732467059801,3.3746678,3326.5,3326.3,0.02731965]
[1732467060036,3.3746678,3326.5,3325.9,0.7858]
[1732467060239,3.00644,3326.2,3325.9,0.7858]
[1732467060440,3.00643,3326.3,3326.0,0.02725966]
[1732467060646,3.00608,3326.6,3326.0,0.02725966]
[1732467060937,0.77,3326.9,3326.0,0.02725966]
[1732467061141,0.77,3326.0,3325.0,0.7858]
[1732467061440,3.00706,3325.6,3325.0,0.7858]
[1732467061596,3.00721,3325.4,3325.1,0.04824626]
[1732467062005,3.307706,3325.6,3325.1,0.04824626]
[1732467062297,3.00702,3325.6,3325.1,0.04824626]
[1732467062504,3.00708,3325.5,3325.1,0.04824626]
[1732467062728,3.00726,3325.3,3325.1,0.04824626]
[1732467063101,3.00733,3325.2,3325.1,0.04824626]
[1732467063308,4.395589,3325.2,3325.1,0.04824626]
[1732467063606,3.00783,3324.7,3324.2,0.8139]
[1732467064005,3.00806,3324.4,3324.3,0.04787893]
[1732467064203,0.7868,3325.2,3324.3,0.04787893]
[1732467064446,3.00794,3324.6,3323.9,1.8051]
[1732467064602,3.00797,3324.5,3324.4,0.04787892]
[1732467064799,3.00797,3324.5,3323.9,1.8051]
[1732467065055,3.00797,3324.5,3323.9,2.52511062]
[1732467065238,1.28795943,3324.6,3324.0,0.04787893]
[1732467065611,3.00833,3324.1,3324.0,0.04787893]
[1732467067118,3.00817,3324.3,3323.0,0.8158]
[1732467067319,3.00904,3323.4,3323.1,0.04787893]
[1732467067764,0.8276,3324.4,3323.3,2.77594618]
[1732467067917,0.8276,3324.4,3323.5,1.8053]
[1732467068115,3.00824,3324.3,3323.6,0.02644189]
[1732467068361,3.008,3324.5,3323.8,1.80515]
[1732467068524,3.00821,3324.3,3323.6,0.02644189]
[1732467068724,3.00821,3324.3,3323.7,0.02142499]
[1732467069042,3.0,3324.9,3323.7,0.02142499]
[1732467069043,3.00789,3324.6,3323.8,0.8158]
[1732467069256,3.00789,3324.6,3323.9,2.16938555]
[1732467069445,3.00751,3325.0,3323.9,2.19078047]
[1732467069645,3.00817,3324.3,3323.9,0.38572047]
[1732467070155,3.00834,3324.1,3323.9,0.02139492]
[1732467070361,3.00832,3324.2,3323.9,0.02139492]
[1732467070661,3.00842,3324.0,3323.9,0.02139492]
[1732467070842,3.00832,3324.2,3323.6,1.83170189]
[1732467071049,3.00832,3324.2,3323.9,0.04814803]
[1732467071234,3.00832,3324.2,3323.5,2.62111]
[1732467071472,3.00833,3324.1,3323.5,2.62111]
[1732467071671,3.0,3324.8,3323.6,0.28882799]
[1732467071875,3.00869,3323.7,3323.6,0.02671699]
[1732467072501,3.00858,3323.9,3323.6,0.02671699]
[1732467072670,3.0086,3323.8,3323.6,0.02671699]
[1732467073099,3.00857,3323.9,3323.6,0.02671699]
[1732467073274,3.00824,3324.2,3323.6,0.02671699]
[1732467073476,3.0085,3324.0,3323.6,0.02671699]
[1732467073666,3.00869,3323.7,3323.6,0.02671699]
[1732467073861,3.00815,3324.3,3323.7,1.8052]
[1732467074068,3.00815,3324.3,3323.8,0.02768731]
[1732467074272,0.58979155,3324.4,3323.7,1.8052]
[1732467074506,3.0079,3324.6,3323.9,1.8051]
[1732467074797,3.61260243,3324.6,3324.0,0.02774377]
[1732467074998,0.60470243,3324.6,3324.0,1.83278377]
[1732467075211,3.00772,3324.8,3324.1,1.80496]
[1732467075413,3.00779,3324.7,3324.0,0.21102215]
[1732467075715,3.00812,3324.4,3324.1,0.02774982]
[1732467075917,3.00835,3324.1,3323.5,3.8158]
[1732467076092,6.01636,3324.3,3323.6,0.28955745]
[1732467076311,3.00815,3324.3,3323.6,0.28955745]
[1732467076718,3.00797,3324.5,3323.6,0.02744145]
[1732467076884,3.0085,3324.0,3323.6,0.02744145]
[1732467077215,3.00769,3324.8,3323.6,0.02744145]
[1732467077216,3.00869,3323.7,3323.6,0.02744145]
[1732467077514,3.83625,3323.8,3323.1,0.02151523]
[1732467077682,3.00902,3323.4,3323.2,0.0488725]
[1732467078012,3.00873,3323.7,3323.2,0.0488725]
[1732467078216,3.00894,3323.5,3323.2,0.0488725]
[1732467078677,3.00905,3323.3,3323.2,0.0488725]
[1732467079084,3.911744,3323.3,3323.1,0.02151523]
[1732467079309,3.00914,3323.2,3323.1,0.02151523]
[1732467081610,3.00914,3323.2,3323.1,0.07119033]
[1732467081914,3.00914,3323.2,3323.1,0.02151523]
[1732467083402,1.3196668,3323.4,3323.1,0.02151523]
[1732467083603,3.00893,3323.5,3323.1,0.02151523]
[1732467083845,3.00897,3323.4,3323.2,0.04966992]
[1732467084007,3.00872,3323.7,3323.2,0.04966992]
[1732467084324,3.00893,3323.5,3323.2,0.04966992]
[1732467084815,3.60394429,3323.6,3323.2,0.04966992]
[1732467085135,3.00896,3323.4,3323.2,0.04966992]
[1732467085630,3.00914,3323.2,3323.1,0.02151523]
[1732467085927,3.00914,3323.2,3323.1,0.07125239]
[1732467087255,3.00896,3323.4,3323.1,0.07125239]
[1732467087552,3.60389429,3323.6,3323.2,0.8118]
[1732467087742,3.0,3324.0,3323.1,0.07125239]
[1732467087743,3.00903,3323.4,3323.1,0.07125239]
[1732467088544,3.00882,3323.6,3323.1,0.07125239]
[1732467088694,3.00897,3323.4,3323.1,0.07125239]
[1732467089617,3.00914,3323.2,3323.1,0.07125239]
[1732467091105,3.00914,3323.2,3323.1,0.02151523]
[1732467091317,3.687381,3323.2,3323.1,0.02151523]
[1732467091921,0.678241,3323.2,3323.1,0.02151523]
[1732467092130,3.687381,3323.2,3323.1,0.02151523]
[1732467092542,6.687381,3323.2,3323.1,0.02151523]
[1732467093199,3.0,3323.3,3323.1,0.02151523]
[1732467093400,3.00914,3323.2,3323.1,0.02151523]
[1732467093628,6.00914,3323.2,3323.1,0.02151523]
[1732467095109,3.00914,3323.2,3323.1,0.02151523]
[1732467097931,3.0,3323.3,3323.1,0.02151523]
[1732467098148,3.00914,3323.2,3323.1,0.02151523]
[1732467098505,3.00914,3323.2,3323.1,0.07186361]
[1732467098707,3.00914,3323.2,3323.1,0.02151523]
[1732467100946,3.00914,3323.2,3323.1,0.17354823]
[1732467101248,3.988286,3323.2,3323.1,0.17354823]
[1732467102696,10.006686,3323.2,3323.1,0.17354823]
[1732467103901,14.387886,3323.2,3323.1,0.17354823]
[1732467104056,13.837886,3323.2,3323.1,0.17354823]
[1732467106155,14.387886,3323.2,3323.1,0.17354823]
[1732467109020,12.85874,3323.2,3323.1,0.17354823]
[1732467109623,9.02754,3323.2,3323.1,0.17354823]
[1732467112630,6.0184,3323.2,3323.1,0.22403651]
[1732467112840,9.02754,3323.2,3323.1,0.22403651]
[1732467113412,9.02754,3323.2,3323.1,0.17354823]
[1732467115217,9.02754,3323.2,3323.1,0.22403651]
[1732467115534,9.02754,3323.2,3323.1,0.17354823]
[1732467116058,10.532096,3323.2,3323.1,0.17354823]
[1732467117113,10.532096,3323.2,3323.1,0.22403651]
[1732467117453,9.02754,3323.2,3323.1,0.22403651]
[1732467118221,9.02754,3323.2,3323.1,0.17354823]
[1732467118408,9.02754,3323.2,3323.1,0.22382408]
[1732467118630,9.02754,3323.2,3323.1,0.17354823]
[1732467119055,9.02754,3323.2,3323.1,0.22382408]
[1732467119349,9.02754,3323.2,3323.1,0.17354823]
[1732467120551,14.082096,3323.2,3323.1,0.17354823]
[1732467120755,14.913296,3323.2,3323.1,0.17354823]
[1732467121044,14.913296,3323.2,3321.4,2.59156]
[1732467121045,3.0103,3322.0,3321.4,2.59156]
[1732467121250,3.01057,3321.7,3321.4,0.7851]
[1732467121408,9.02899,3321.6,3321.5,0.04788281]
[1732467121836,9.02899,3321.6,3321.1,0.7851]
[1732467122039,3.01083,3321.4,3320.7,4.115073]
[1732467122222,3.01095,3321.2,3320.8,0.7851]
[1732467122526,3.01105,3321.1,3320.8,0.7851]
[1732467122727,6.0184,3321.3,3320.9,1.80668]
[1732467123056,6.0184,3321.3,3321.2,2.56367]
[1732467123756,6.0184,3321.3,3321.2,2.9783632]
[1732467123998,6.0184,3321.3,3321.2,5.9783632]
[1732467124314,6.0184,3321.3,3321.2,8.70613075]
[1732467124658,3.00974,3322.6,3321.3,3.7571]
[1732467124810,3.00974,3322.6,3322.1,0.7571]
[1732467125243,3.00974,3322.6,3322.2,0.01761594]
[1732467125411,3.00961,3322.7,3322.2,0.01761594]
[1732467126363,3.00981,3322.5,3322.2,0.01761594]
[1732467126856,3.00996,3322.3,3321.7,0.7571]
[1732467127011,0.8033,3322.4,3321.4,0.7571]
[1732467127216,0.8033,3322.4,3321.8,0.01760664]
[1732467127217,3.01041,3321.9,3321.8,0.01760664]
[1732467127516,0.55,3322.3,3321.4,0.7571]
[1732467127855,3.0,3322.0,3321.5,0.04858247]
[1732467128015,3.01059,3321.6,3321.5,0.04858247]
[1732467128364,3.01043,3321.8,3321.1,1.80658]
[1732467128655,3.0105,3321.7,3321.2,0.04899184]
[1732467128954,3.01065,3321.6,3321.2,0.04899184]
[1732467129159,3.01086,3321.4,3321.2,0.04899184]
[1732467129518,3.01071,3321.5,3321.2,0.04899184]
[1732467130462,3.01051,3321.7,3321.2,0.04899184]
[1732467130463,3.01061,3321.6,3321.2,0.04899184]
[1732467130619,0.8033,3321.8,3321.2,0.04899184]
[1732467130956,3.01086,3321.3,3321.2,0.04899184]